[Event "Late-Titled-Tuesday-Blitz-March-12-2024"]
[Site "Chess.com"]
[Date "2024.03.12"]
[Round "6"]
[White "Alphafischer2019"]
[Black "SamuraisOfChess"]
[Result "1-0"]
[WhiteElo "2745"]
[BlackElo "2575"]
[TimeControl "180+1"]
[EndTime "15:04:14 PDT"]
[Termination "Alphafischer2019 won by resignation"]

1. Nf3 {[%clk 0:03:00.9]} 1... Nf6 {[%clk 0:02:59.7]} 2. g3 {[%clk 0:03:01.2]}
2... d5 {[%clk 0:03:00.1]} 3. Bg2 {[%clk 0:03:00.7]} 3... g6 {[%clk 0:03:01]} 4.
O-O {[%clk 0:03:01.3]} 4... Bg7 {[%clk 0:03:01.9]} 5. c4 {[%clk 0:03:01.5]} 5...
O-O {[%clk 0:03:02.8]} 6. cxd5 {[%clk 0:02:54.7]} 6... Nxd5 {[%clk 0:03:03.7]}
7. Nc3 {[%clk 0:02:55.4]} 7... Nb6 {[%clk 0:03:04]} 8. b3 {[%clk 0:02:54]} 8...
c6 {[%clk 0:03:03.3]} 9. Bb2 {[%clk 0:02:54.1]} 9... N8d7 {[%clk 0:03:03.3]} 10.
Qc1 {[%clk 0:02:53.6]} 10... e5 {[%clk 0:03:03.1]} 11. d3 {[%clk 0:02:53.7]}
11... Nc5 {[%clk 0:03:02.7]} 12. Qc2 {[%clk 0:02:50.8]} 12... Ne6 {[%clk
0:03:02.5]} 13. Ne4 {[%clk 0:02:49.7]} 13... Qc7 {[%clk 0:03:02.3]} 14. Rac1
{[%clk 0:02:47.9]} 14... f5 {[%clk 0:03:01.9]} 15. Ned2 {[%clk 0:02:46.6]} 15...
h6 {[%clk 0:03:01.8]} 16. b4 {[%clk 0:02:43.4]} 16... Qd6 {[%clk 0:02:59.1]} 17.
a3 {[%clk 0:02:42.6]} 17... Kh7 {[%clk 0:02:58.2]} 18. Rfd1 {[%clk 0:02:41.3]}
18... a5 {[%clk 0:02:48.7]} 19. Nc4 {[%clk 0:02:36.3]} 19... Nxc4 {[%clk
0:02:45.2]} 20. dxc4 {[%clk 0:02:37.2]} 20... Qc7 {[%clk 0:02:45.6]} 21. c5
{[%clk 0:02:37.8]} 21... axb4 {[%clk 0:02:43.6]} 22. axb4 {[%clk 0:02:36.9]}
22... Bd7 {[%clk 0:02:40.5]} 23. Bxe5 {[%clk 0:02:33.1]} 23... Bxe5 {[%clk
0:02:30.6]} 24. Nxe5 {[%clk 0:02:33.1]} 24... Be8 {[%clk 0:02:29.7]} 25. Nc4
{[%clk 0:02:27.8]} 25... Bf7 {[%clk 0:02:25.3]} 26. Nd6 {[%clk 0:02:26.8]} 26...
Bg8 {[%clk 0:02:25.2]} 27. h4 {[%clk 0:02:22.6]} 27... Ng7 {[%clk 0:02:21.2]}
28. b5 {[%clk 0:02:20.8]} 28... Ra2 {[%clk 0:02:18.6]} 29. Qd3 {[%clk
0:02:20.6]} 29... Qe7 {[%clk 0:01:37.6]} 30. e3 {[%clk 0:02:19.7]} 30... Qc7
{[%clk 0:01:19.1]} 31. Ra1 {[%clk 0:02:10.7]} 31... Rfa8 {[%clk 0:01:16.9]} 32.
Rxa2 {[%clk 0:02:10.3]} 32... Rxa2 {[%clk 0:01:17.8]} 33. h5 {[%clk 0:02:00.9]}
33... Nxh5 {[%clk 0:01:17]} 34. Nxf5 {[%clk 0:02:00.8]} 34... cxb5 {[%clk
0:01:12.1]} 35. Qxb5 {[%clk 0:01:54.4]} 35... Be6 {[%clk 0:01:01.5]} 36. Nd4
{[%clk 0:01:50.1]} 36... Bf7 {[%clk 0:01:00]} 37. Qxb7 {[%clk 0:01:50.1]} 37...
Qxb7 {[%clk 0:00:25.2]} 38. Bxb7 {[%clk 0:01:51]} 38... Nf6 {[%clk 0:00:23.4]}
39. Bf3 {[%clk 0:01:48.2]} 39... g5 {[%clk 0:00:23]} 40. c6 {[%clk 0:01:47.8]}
40... g4 {[%clk 0:00:19.6]} 41. c7 {[%clk 0:01:46.6]} 1-0

[Event "Late-Titled-Tuesday-Blitz-March-12-2024"]
[Site "Chess.com"]
[Date "2024.03.12"]
[Round "6"]
[White "Smiechu"]
[Black "simaopdias"]
[Result "1-0"]
[WhiteElo "2472"]
[BlackElo "2266"]
[TimeControl "180+1"]
[EndTime "15:04:17 PDT"]
[Termination "Smiechu won by resignation"]

1. e4 {[%clk 0:03:00.9]} 1... c5 {[%clk 0:02:59.7]} 2. Nf3 {[%clk 0:03:01]} 2...
g6 {[%clk 0:03:00]} 3. d4 {[%clk 0:03:01.4]} 3... cxd4 {[%clk 0:03:00.9]} 4.
Nxd4 {[%clk 0:03:01.9]} 4... Nc6 {[%clk 0:03:01.3]} 5. Nc3 {[%clk 0:03:02.4]}
5... Bg7 {[%clk 0:03:01.9]} 6. Be3 {[%clk 0:03:03]} 6... Nf6 {[%clk 0:03:02.7]}
7. Bc4 {[%clk 0:03:02.5]} 7... Qa5 {[%clk 0:03:02.4]} 8. O-O {[%clk 0:03:02.2]}
8... O-O {[%clk 0:03:03.1]} 9. Bb3 {[%clk 0:03:00.2]} 9... d6 {[%clk 0:03:03.5]}
10. h3 {[%clk 0:03:00.3]} 10... Bd7 {[%clk 0:03:03]} 11. Re1 {[%clk 0:03:00.5]}
11... Rfe8 {[%clk 0:02:54.8]} 12. Qe2 {[%clk 0:02:56.4]} 12... Rac8 {[%clk
0:02:49.4]} 13. Rad1 {[%clk 0:02:45.7]} 13... Ne5 {[%clk 0:02:49.3]} 14. f4
{[%clk 0:02:26.6]} 14... Nc6 {[%clk 0:02:48.8]} 15. Qc4 {[%clk 0:01:38.5]} 15...
Ne5 {[%clk 0:02:39.5]} 16. Qe2 {[%clk 0:01:26.3]} 16... Nc6 {[%clk 0:02:39.5]}
17. Nxc6 {[%clk 0:01:16.2]} 17... bxc6 {[%clk 0:02:31]} 18. Bd4 {[%clk
0:01:12.8]} 18... Be6 {[%clk 0:02:05.2]} 19. Bxe6 {[%clk 0:01:00.6]} 19... fxe6
{[%clk 0:02:06.1]} 20. e5 {[%clk 0:00:51.5]} 20... Nd5 {[%clk 0:02:04.1]} 21.
exd6 {[%clk 0:00:45.3]} 21... Bxd4+ {[%clk 0:01:48.6]} 22. Rxd4 {[%clk
0:00:44.6]} 22... Nxc3 {[%clk 0:01:41.3]} 23. Qxe6+ {[%clk 0:00:43.9]} 23... Kg7
{[%clk 0:01:40.1]} 24. d7 {[%clk 0:00:42.6]} 24... Rcd8 {[%clk 0:00:59.5]} 25.
dxe8=Q {[%clk 0:00:39.4]} 25... Rxe8 {[%clk 0:00:59.2]} 26. bxc3 {[%clk
0:00:39.2]} 26... Qxc3 {[%clk 0:00:55.8]} 27. Qe5+ {[%clk 0:00:39.2]} 27... Kf8
{[%clk 0:00:54.9]} 28. Rd8 {[%clk 0:00:37.5]} 28... Qxe5 {[%clk 0:00:46.6]} 29.
Rxe8+ {[%clk 0:00:37.4]} 1-0

[Event "Late-Titled-Tuesday-Blitz-March-12-2024"]
[Site "Chess.com"]
[Date "2024.03.12"]
[Round "6"]
[White "reevecanada"]
[Black "dropstoneDP"]
[Result "1/2-1/2"]
[WhiteElo "2645"]
[BlackElo "2970"]
[TimeControl "180+1"]
[EndTime "15:04:21 PDT"]
[Termination "Game drawn by repetition"]

1. e4 {[%clk 0:02:58.4]} 1... e5 {[%clk 0:02:59]} 2. Nf3 {[%clk 0:02:56.8]} 2...
Nf6 {[%clk 0:02:59.1]} 3. Nxe5 {[%clk 0:02:55.9]} 3... d6 {[%clk 0:02:58.8]} 4.
Nxf7 {[%clk 0:02:55.6]} 4... Kxf7 {[%clk 0:02:58.6]} 5. Bc4+ {[%clk 0:02:54]}
5... Be6 {[%clk 0:02:54.2]} 6. Bxe6+ {[%clk 0:02:45.1]} 6... Kxe6 {[%clk
0:02:55.1]} 7. O-O {[%clk 0:02:45.4]} 7... c5 {[%clk 0:02:53.6]} 8. Re1 {[%clk
0:02:43.6]} 8... Nc6 {[%clk 0:02:52.6]} 9. c3 {[%clk 0:02:43.3]} 9... Kf7 {[%clk
0:02:24.6]} 10. d4 {[%clk 0:02:42]} 10... Be7 {[%clk 0:02:04.9]} 11. Qb3+ {[%clk
0:02:40.2]} 11... Kf8 {[%clk 0:01:49.2]} 12. d5 {[%clk 0:02:33.5]} 12... Ne5
{[%clk 0:01:48.2]} 13. Qc2 {[%clk 0:02:28.2]} 13... c4 {[%clk 0:01:47.8]} 14.
Nd2 {[%clk 0:02:19.3]} 14... b5 {[%clk 0:01:43.2]} 15. a4 {[%clk 0:02:12]} 15...
a6 {[%clk 0:01:42.2]} 16. h3 {[%clk 0:02:07]} 16... Nfd7 {[%clk 0:01:23.9]} 17.
b3 {[%clk 0:01:55.9]} 17... Nc5 {[%clk 0:01:19.7]} 18. Ba3 {[%clk 0:01:51.5]}
18... Ncd3 {[%clk 0:01:08.4]} 19. Re3 {[%clk 0:01:46.7]} 19... Bg5 {[%clk
0:01:06.9]} 20. Re2 {[%clk 0:01:41.3]} 20... Kg8 {[%clk 0:01:04.4]} 21. bxc4
{[%clk 0:01:40.5]} 21... Nf4 {[%clk 0:01:03.3]} 22. Ree1 {[%clk 0:01:36.4]}
22... bxc4 {[%clk 0:01:02.6]} 23. g3 {[%clk 0:01:33.2]} 23... Nxh3+ {[%clk
0:01:01.7]} 24. Kg2 {[%clk 0:01:32.2]} 24... Nxf2 {[%clk 0:01:00.5]} 25. Kxf2
{[%clk 0:01:32.1]} 25... Qf6+ {[%clk 0:01:00.3]} 26. Kg2 {[%clk 0:01:31.8]}
26... Bxd2 {[%clk 0:00:48]} 27. Qxd2 {[%clk 0:01:21.4]} 27... Qf3+ {[%clk
0:00:47.7]} 28. Kh3 {[%clk 0:01:09.7]} 28... Qh5+ {[%clk 0:00:35.3]} 29. Kg2
{[%clk 0:01:07.1]} 29... Qf3+ {[%clk 0:00:35.1]} 30. Kh3 {[%clk 0:01:05.8]}
30... Qh5+ {[%clk 0:00:16.1]} 31. Kg2 {[%clk 0:01:05]} 31... Qf3+ {[%clk
0:00:15.8]} 1/2-1/2

[Event "Late-Titled-Tuesday-Blitz-March-12-2024"]
[Site "Chess.com"]
[Date "2024.03.12"]
[Round "6"]
[White "Korchmar_Vasiliy"]
[Black "Anton_Demchenko"]
[Result "0-1"]
[WhiteElo "2707"]
[BlackElo "2948"]
[TimeControl "180+1"]
[EndTime "15:04:38 PDT"]
[Termination "Anton_Demchenko won on time"]

1. e4 {[%clk 0:03:00.9]} 1... e5 {[%clk 0:03:00.3]} 2. Nf3 {[%clk 0:03:00.6]}
2... Nc6 {[%clk 0:03:00.9]} 3. Bc4 {[%clk 0:03:01.1]} 3... Nf6 {[%clk 0:03:01]}
4. d3 {[%clk 0:02:59.9]} 4... h6 {[%clk 0:03:00.7]} 5. O-O {[%clk 0:02:58.8]}
5... d6 {[%clk 0:03:01.1]} 6. a4 {[%clk 0:02:54.1]} 6... g6 {[%clk 0:03:00.7]}
7. Nc3 {[%clk 0:02:52.9]} 7... Bg7 {[%clk 0:03:01]} 8. Re1 {[%clk 0:02:50]} 8...
Be6 {[%clk 0:03:01.3]} 9. a5 {[%clk 0:02:42.3]} 9... a6 {[%clk 0:03:00.8]} 10.
h3 {[%clk 0:02:37.6]} 10... O-O {[%clk 0:02:59.7]} 11. Be3 {[%clk 0:02:36.5]}
11... Qd7 {[%clk 0:02:54]} 12. Qd2 {[%clk 0:02:31.6]} 12... Kh7 {[%clk
0:02:54.4]} 13. Reb1 {[%clk 0:02:11.8]} 13... Rad8 {[%clk 0:02:50.8]} 14. Nd5
{[%clk 0:01:32.7]} 14... Bxd5 {[%clk 0:02:47.7]} 15. exd5 {[%clk 0:01:33.6]}
15... Ne7 {[%clk 0:02:47.5]} 16. Qb4 {[%clk 0:01:27.8]} 16... Nfxd5 {[%clk
0:02:11.5]} 17. Qxb7 {[%clk 0:01:20.4]} 17... Rb8 {[%clk 0:01:57.3]} 18. Qxa6
{[%clk 0:01:06.1]} 18... Nb4 {[%clk 0:01:57.1]} 19. Qa7 {[%clk 0:00:57.5]} 19...
Nec6 {[%clk 0:01:57]} 20. Qxb8 {[%clk 0:00:36.3]} 20... Rxb8 {[%clk 0:01:57.9]}
21. Rc1 {[%clk 0:00:36.1]} 21... e4 {[%clk 0:01:58.3]} 22. dxe4 {[%clk
0:00:30.4]} 22... Bxb2 {[%clk 0:01:58.3]} 23. Bd2 {[%clk 0:00:17.2]} 23... Bxa1
{[%clk 0:01:51.4]} 24. Rxa1 {[%clk 0:00:18.1]} 24... Nxc2 {[%clk 0:01:51.8]} 25.
Rc1 {[%clk 0:00:14.8]} 25... N2d4 {[%clk 0:01:47.7]} 26. Nxd4 {[%clk 0:00:13.7]}
26... Nxd4 {[%clk 0:01:48.6]} 27. a6 {[%clk 0:00:12.5]} 27... c5 {[%clk
0:01:44.9]} 28. Be3 {[%clk 0:00:06.5]} 28... Qa4 {[%clk 0:01:36.7]} 29. Bxd4
{[%clk 0:00:04.1]} 29... cxd4 {[%clk 0:01:37.6]} 30. Bxf7 {[%clk 0:00:03.7]}
30... Qxa6 {[%clk 0:01:28.7]} 31. Rc7 {[%clk 0:00:03.8]} 31... Qa5 {[%clk
0:01:19.2]} 32. Rd7 {[%clk 0:00:01.7]} 32... Kh8 {[%clk 0:01:17.1]} 33. Bxg6
{[%clk 0:00:01.5]} 33... Qg5 {[%clk 0:01:08.4]} 34. Bf5 {[%clk 0:00:01.5]} 34...
Rb1+ {[%clk 0:01:07.9]} 0-1

[Event "Late-Titled-Tuesday-Blitz-March-12-2024"]
[Site "Chess.com"]
[Date "2024.03.12"]
[Round "6"]
[White "Rodalquilar"]
[Black "BilodeauA"]
[Result "0-1"]
[WhiteElo "2792"]
[BlackElo "3007"]
[TimeControl "180+1"]
[EndTime "15:04:39 PDT"]
[Termination "BilodeauA won by checkmate"]

1. d4 {[%clk 0:03:00.9]} 1... d5 {[%clk 0:03:00.2]} 2. Nf3 {[%clk 0:03:01.2]}
2... Nf6 {[%clk 0:03:00.4]} 3. Bf4 {[%clk 0:03:01.5]} 3... e6 {[%clk 0:02:58.9]}
4. e3 {[%clk 0:03:01.2]} 4... Bd6 {[%clk 0:02:58.9]} 5. Nbd2 {[%clk 0:03:01.5]}
5... Nc6 {[%clk 0:02:59.4]} 6. Bxd6 {[%clk 0:02:44.7]} 6... cxd6 {[%clk
0:02:57.5]} 7. c4 {[%clk 0:02:45.1]} 7... O-O {[%clk 0:02:54.4]} 8. Be2 {[%clk
0:02:44.8]} 8... dxc4 {[%clk 0:02:48.6]} 9. Nxc4 {[%clk 0:02:43.9]} 9... b6
{[%clk 0:02:48.7]} 10. O-O {[%clk 0:02:42.1]} 10... Bb7 {[%clk 0:02:49.4]} 11.
Rc1 {[%clk 0:02:42.1]} 11... Ne7 {[%clk 0:02:46.3]} 12. a4 {[%clk 0:02:32.3]}
12... Rc8 {[%clk 0:02:44.2]} 13. Nfd2 {[%clk 0:02:31.1]} 13... Qd7 {[%clk
0:02:42.7]} 14. Qb3 {[%clk 0:02:13.1]} 14... Rc7 {[%clk 0:02:32.3]} 15. Rc2
{[%clk 0:02:01.6]} 15... Rfc8 {[%clk 0:02:31]} 16. Rfc1 {[%clk 0:02:01.7]} 16...
Bd5 {[%clk 0:02:28.6]} 17. Qb4 {[%clk 0:01:47.7]} 17... h6 {[%clk 0:02:21.6]}
18. Bd3 {[%clk 0:01:46.6]} 18... Ne8 {[%clk 0:02:10.4]} 19. e4 {[%clk
0:01:30.3]} 19... Bxc4 {[%clk 0:02:10.7]} 20. Rxc4 {[%clk 0:01:27.6]} 20... d5
{[%clk 0:01:59.1]} 21. Rxc7 {[%clk 0:01:13.5]} 21... Rxc7 {[%clk 0:02:00]} 22.
Rxc7 {[%clk 0:01:13.7]} 22... Qxc7 {[%clk 0:02:00.9]} 23. Qc3 {[%clk 0:01:14.2]}
23... dxe4 {[%clk 0:01:59.9]} 24. Bxe4 {[%clk 0:01:10.7]} 24... Qd7 {[%clk
0:01:54.2]} 25. b3 {[%clk 0:01:04.3]} 25... Nf6 {[%clk 0:01:50.1]} 26. h3 {[%clk
0:00:52.7]} 26... Nxe4 {[%clk 0:01:31.7]} 27. Nxe4 {[%clk 0:00:53.6]} 27... Nf5
{[%clk 0:01:32.2]} 28. a5 {[%clk 0:00:52.9]} 28... bxa5 {[%clk 0:01:27.9]} 29.
Qxa5 {[%clk 0:00:45]} 29... Qxd4 {[%clk 0:01:27.9]} 30. Nc5 {[%clk 0:00:45.6]}
30... Kh7 {[%clk 0:01:07.7]} 31. Qxa7 {[%clk 0:00:42.1]} 31... Ng3 {[%clk
0:01:03.3]} 32. Qc7 {[%clk 0:00:18.5]} 32... Ne2+ {[%clk 0:00:58.9]} 33. Kh2
{[%clk 0:00:16.9]} 33... Qxf2 {[%clk 0:00:58]} 34. Ne4 {[%clk 0:00:08]} 34...
Qg1# {[%clk 0:00:57.7]} 0-1

[Event "Late-Titled-Tuesday-Blitz-March-12-2024"]
[Site "Chess.com"]
[Date "2024.03.12"]
[Round "6"]
[White "N4700000"]
[Black "Rinqed222"]
[Result "1-0"]
[WhiteElo "2497"]
[BlackElo "2336"]
[TimeControl "180+1"]
[EndTime "15:04:39 PDT"]
[Termination "N4700000 won by resignation"]

1. e4 {[%clk 0:03:00.9]} 1... e6 {[%clk 0:02:59.3]} 2. d4 {[%clk 0:03:00.2]}
2... d5 {[%clk 0:02:59.1]} 3. Nc3 {[%clk 0:02:59.6]} 3... Nf6 {[%clk 0:02:59.1]}
4. e5 {[%clk 0:02:58.6]} 4... Nfd7 {[%clk 0:02:58.7]} 5. Qh5 {[%clk 0:02:56.8]}
5... c5 {[%clk 0:02:29.6]} 6. Nf3 {[%clk 0:02:56.2]} 6... g6 {[%clk 0:02:05.5]}
7. Qg4 {[%clk 0:02:52.1]} 7... cxd4 {[%clk 0:02:00.4]} 8. Nxd4 {[%clk 0:02:53]}
8... Nxe5 {[%clk 0:01:59.2]} 9. Qg3 {[%clk 0:02:52.6]} 9... Bg7 {[%clk
0:01:53.7]} 10. Bf4 {[%clk 0:02:34.8]} 10... Nbc6 {[%clk 0:01:33.4]} 11. Bb5
{[%clk 0:02:33.7]} 11... O-O {[%clk 0:01:27.2]} 12. Bxc6 {[%clk 0:02:15.3]}
12... Nxc6 {[%clk 0:01:25.9]} 13. Nxc6 {[%clk 0:01:50.6]} 13... bxc6 {[%clk
0:01:26.8]} 14. O-O {[%clk 0:01:47.7]} 14... f6 {[%clk 0:01:06.4]} 15. Bd6
{[%clk 0:01:42.8]} 15... Rf7 {[%clk 0:01:04.7]} 16. Na4 {[%clk 0:01:39.3]} 16...
e5 {[%clk 0:01:02]} 17. Ba3 {[%clk 0:01:36.4]} 17... Bf8 {[%clk 0:00:58.2]} 18.
Bxf8 {[%clk 0:01:34.6]} 18... Qxf8 {[%clk 0:00:57.5]} 19. Qc3 {[%clk 0:01:31.9]}
19... Qd6 {[%clk 0:00:45.9]} 20. b4 {[%clk 0:01:26.3]} 20... d4 {[%clk
0:00:43.8]} 21. Qd2 {[%clk 0:01:15.2]} 21... Rb8 {[%clk 0:00:41]} 22. a3 {[%clk
0:01:13.4]} 22... Be6 {[%clk 0:00:39.7]} 23. Nc5 {[%clk 0:01:11.7]} 23... Bc4
{[%clk 0:00:39.4]} 24. Rfe1 {[%clk 0:01:10.8]} 24... a5 {[%clk 0:00:36.6]} 25.
c3 {[%clk 0:01:05.8]} 25... Rd8 {[%clk 0:00:24.5]} 26. Rad1 {[%clk 0:01:03.2]}
26... axb4 {[%clk 0:00:18.6]} 27. axb4 {[%clk 0:01:02.4]} 27... Ra7 {[%clk
0:00:19.3]} 28. cxd4 {[%clk 0:00:59.4]} 28... Qxd4 {[%clk 0:00:17.8]} 29. Qc1
{[%clk 0:00:57.7]} 29... Qxd1 {[%clk 0:00:04.4]} 30. Rxd1 {[%clk 0:00:57.1]}
30... Rda8 {[%clk 0:00:03.1]} 31. Qxc4+ {[%clk 0:00:55.5]} 1-0

[Event "Late-Titled-Tuesday-Blitz-March-12-2024"]
[Site "Chess.com"]
[Date "2024.03.12"]
[Round "6"]
[White "emeli_chess"]
[Black "Koalaskakistis"]
[Result "1-0"]
[WhiteElo "2396"]
[BlackElo "2524"]
[TimeControl "180+1"]
[EndTime "15:04:44 PDT"]
[Termination "emeli_chess won by checkmate"]

1. d4 {[%clk 0:03:00.9]} 1... Nf6 {[%clk 0:02:55.9]} 2. c4 {[%clk 0:03:00.6]}
2... g6 {[%clk 0:02:54.8]} 3. Nc3 {[%clk 0:03:00.7]} 3... Bg7 {[%clk 0:02:55.7]}
4. e4 {[%clk 0:03:00.7]} 4... O-O {[%clk 0:02:55.6]} 5. Be3 {[%clk 0:03:00.3]}
5... d6 {[%clk 0:02:56.1]} 6. f3 {[%clk 0:03:00.4]} 6... e5 {[%clk 0:02:53.7]}
7. d5 {[%clk 0:03:00]} 7... a5 {[%clk 0:02:50.2]} 8. Qd2 {[%clk 0:02:55.3]} 8...
Na6 {[%clk 0:02:49.5]} 9. Bd3 {[%clk 0:02:53.8]} 9... Nc5 {[%clk 0:02:47.9]} 10.
Bc2 {[%clk 0:02:53.8]} 10... Nh5 {[%clk 0:02:48.1]} 11. O-O-O {[%clk 0:02:51.6]}
11... f5 {[%clk 0:02:46.5]} 12. exf5 {[%clk 0:02:51.2]} 12... gxf5 {[%clk
0:02:47.4]} 13. Nge2 {[%clk 0:02:49.4]} 13... a4 {[%clk 0:02:40.7]} 14. h3
{[%clk 0:02:47.3]} 14... a3 {[%clk 0:02:35.5]} 15. b3 {[%clk 0:02:46.7]} 15...
f4 {[%clk 0:02:33.2]} 16. Bxc5 {[%clk 0:02:44]} 16... dxc5 {[%clk 0:02:32.2]}
17. d6 {[%clk 0:02:42.6]} 17... cxd6 {[%clk 0:02:29.7]} 18. Qxd6 {[%clk
0:02:41.9]} 18... Qa5 {[%clk 0:02:12.3]} 19. Ne4 {[%clk 0:02:34.8]} 19... Bf5
{[%clk 0:01:48.6]} 20. N2c3 {[%clk 0:02:30.6]} 20... Rac8 {[%clk 0:01:42.5]} 21.
Rd5 {[%clk 0:01:52.2]} 21... Rfd8 {[%clk 0:01:39.6]} 22. Qe7 {[%clk 0:01:50.6]}
22... Re8 {[%clk 0:01:31.7]} 23. Qg5 {[%clk 0:01:34.2]} 23... Bg6 {[%clk
0:01:31.9]} 24. Rhd1 {[%clk 0:01:29.4]} 24... Qa6 {[%clk 0:01:08.5]} 25. Rd6
{[%clk 0:01:03.5]} 25... Qa5 {[%clk 0:01:07.7]} 26. Rxg6 {[%clk 0:01:00.1]}
26... hxg6 {[%clk 0:01:07.1]} 27. Qxg6 {[%clk 0:01:00.5]} 27... Ng3 {[%clk
0:01:03.7]} 28. Nf6+ {[%clk 0:00:44.9]} 28... Kf8 {[%clk 0:01:03.8]} 29. Nd7+
{[%clk 0:00:37]} 29... Kg8 {[%clk 0:01:02.8]} 30. Nd5 {[%clk 0:00:23.3]} 30...
Rf8 {[%clk 0:00:35.9]} 31. Ne7+ {[%clk 0:00:21.6]} 31... Kh8 {[%clk 0:00:35.5]}
32. Qh7# {[%clk 0:00:21.7]} 1-0

[Event "Late-Titled-Tuesday-Blitz-March-12-2024"]
[Site "Chess.com"]
[Date "2024.03.12"]
[Round "6"]
[White "Zohid6"]
[Black "Msb2"]
[Result "0-1"]
[WhiteElo "2896"]
[BlackElo "3034"]
[TimeControl "180+1"]
[EndTime "15:04:45 PDT"]
[Termination "Msb2 won by resignation"]

1. e4 {[%clk 0:03:00.9]} 1... e6 {[%clk 0:03:00.4]} 2. d4 {[%clk 0:03:00.9]}
2... d5 {[%clk 0:03:01.1]} 3. Nc3 {[%clk 0:03:01.6]} 3... Nf6 {[%clk 0:03:01.5]}
4. e5 {[%clk 0:03:01.8]} 4... Nfd7 {[%clk 0:03:02.2]} 5. Nce2 {[%clk 0:03:02.5]}
5... c5 {[%clk 0:03:03]} 6. c3 {[%clk 0:03:03.2]} 6... Nc6 {[%clk 0:03:03.7]} 7.
Nf3 {[%clk 0:03:03.3]} 7... Be7 {[%clk 0:03:04.1]} 8. a3 {[%clk 0:03:03.9]} 8...
O-O {[%clk 0:03:04.7]} 9. Nf4 {[%clk 0:03:04.3]} 9... Qa5 {[%clk 0:03:05.5]} 10.
Be3 {[%clk 0:02:58.6]} 10... cxd4 {[%clk 0:02:50.8]} 11. b4 {[%clk 0:02:54.2]}
11... Qd8 {[%clk 0:02:42]} 12. cxd4 {[%clk 0:02:53.4]} 12... Nb6 {[%clk
0:02:42.6]} 13. Bd3 {[%clk 0:02:51]} 13... f5 {[%clk 0:02:40.7]} 14. h4 {[%clk
0:02:46.1]} 14... Nc4 {[%clk 0:02:40.4]} 15. g4 {[%clk 0:02:33.4]} 15... Nb2
{[%clk 0:02:30.7]} 16. Qe2 {[%clk 0:02:29.4]} 16... Nxd3+ {[%clk 0:02:30.5]} 17.
Qxd3 {[%clk 0:02:30.3]} 17... fxg4 {[%clk 0:02:23.2]} 18. Nh2 {[%clk 0:01:57.9]}
18... g3 {[%clk 0:02:04.6]} 19. fxg3 {[%clk 0:01:49.5]} 19... Bd7 {[%clk
0:02:04.9]} 20. Nf3 {[%clk 0:01:45.6]} 20... h6 {[%clk 0:01:51.5]} 21. g4 {[%clk
0:01:30.5]} 21... Rc8 {[%clk 0:01:44.6]} 22. Rb1 {[%clk 0:01:20.7]} 22... a6
{[%clk 0:01:14.7]} 23. Ng5 {[%clk 0:00:41.6]} 23... Bxg5 {[%clk 0:01:03.3]} 24.
hxg5 {[%clk 0:00:41.5]} 24... Qxg5 {[%clk 0:01:04.2]} 25. Nxe6 {[%clk
0:00:33.9]} 25... Qxg4 {[%clk 0:01:04.8]} 26. Nxf8 {[%clk 0:00:31]} 26... Rxf8
{[%clk 0:01:05.4]} 27. Rg1 {[%clk 0:00:30.4]} 27... Qh4+ {[%clk 0:01:03]} 28.
Kd2 {[%clk 0:00:28.1]} 28... Bf5 {[%clk 0:01:00.5]} 29. Qb3 {[%clk 0:00:23.3]}
29... Qh2+ {[%clk 0:00:58.1]} 30. Kc3 {[%clk 0:00:21.6]} 30... Ne7 {[%clk
0:00:57.4]} 31. b5 {[%clk 0:00:16.3]} 31... a5 {[%clk 0:00:53]} 0-1

[Event "Late-Titled-Tuesday-Blitz-March-12-2024"]
[Site "Chess.com"]
[Date "2024.03.12"]
[Round "6"]
[White "Firouzja2003"]
[Black "sergiochess83"]
[Result "1-0"]
[WhiteElo "3138"]
[BlackElo "2905"]
[TimeControl "180+1"]
[EndTime "15:04:50 PDT"]
[Termination "Firouzja2003 won on time"]

1. e4 {[%clk 0:03:00.9]} 1... e6 {[%clk 0:02:55]} 2. d4 {[%clk 0:03:00.7]} 2...
d5 {[%clk 0:02:55.1]} 3. e5 {[%clk 0:03:01.4]} 3... c5 {[%clk 0:02:55]} 4. c3
{[%clk 0:03:02.2]} 4... Nc6 {[%clk 0:02:55.4]} 5. Nf3 {[%clk 0:03:02.9]} 5...
Bd7 {[%clk 0:02:55.8]} 6. Be2 {[%clk 0:03:03.6]} 6... f6 {[%clk 0:02:54.4]} 7.
O-O {[%clk 0:03:02.8]} 7... fxe5 {[%clk 0:02:54.3]} 8. Nxe5 {[%clk 0:03:03.4]}
8... Nxe5 {[%clk 0:02:52.1]} 9. dxe5 {[%clk 0:03:04.3]} 9... Qc7 {[%clk
0:02:48.1]} 10. Bf4 {[%clk 0:03:01.7]} 10... Ne7 {[%clk 0:02:39.7]} 11. c4
{[%clk 0:03:01.8]} 11... O-O-O {[%clk 0:02:36.1]} 12. Nc3 {[%clk 0:02:59.3]}
12... dxc4 {[%clk 0:02:22]} 13. Bxc4 {[%clk 0:02:48.1]} 13... Ng6 {[%clk
0:02:16.8]} 14. Bg3 {[%clk 0:02:48.1]} 14... h5 {[%clk 0:01:47.3]} 15. Qc2
{[%clk 0:02:27.9]} 15... h4 {[%clk 0:01:35.2]} 16. Qxg6 {[%clk 0:02:27.1]} 16...
hxg3 {[%clk 0:01:35.3]} 17. Qxg3 {[%clk 0:02:28]} 17... Be7 {[%clk 0:01:08.8]}
18. Rad1 {[%clk 0:02:27.6]} 18... g5 {[%clk 0:00:58.7]} 19. Ne4 {[%clk
0:02:23.2]} 19... Kb8 {[%clk 0:00:59.2]} 20. Nd6 {[%clk 0:02:18.2]} 20... Rdf8
{[%clk 0:00:53.3]} 21. Be2 {[%clk 0:02:15.1]} 21... Bc6 {[%clk 0:00:38.6]} 22.
Qb3 {[%clk 0:02:08.4]} 22... Bd5 {[%clk 0:00:35.1]} 23. Qg3 {[%clk 0:01:41.8]}
23... Rf4 {[%clk 0:00:24.4]} 24. Rfe1 {[%clk 0:01:41.9]} 24... Bxd6 {[%clk
0:00:22]} 25. exd6 {[%clk 0:01:39.6]} 25... Qxd6 {[%clk 0:00:22.9]} 26. Bf3
{[%clk 0:01:33.9]} 26... Kc7 {[%clk 0:00:13.7]} 27. Bxd5 {[%clk 0:01:06.8]}
27... exd5 {[%clk 0:00:12.8]} 28. Qxg5 {[%clk 0:01:07.4]} 28... Rd8 {[%clk
0:00:02.1]} 29. Rxd5 {[%clk 0:01:05.3]} 29... Qxd5 {[%clk 0:00:02.1]} 30. Qxf4+
{[%clk 0:01:05.7]} 30... Kc6 {[%clk 0:00:02.9]} 31. Qa4+ {[%clk 0:01:00.1]}
31... Kb6 {[%clk 0:00:02.6]} 32. h4 {[%clk 0:00:59.5]} 32... a6 {[%clk
0:00:02.7]} 33. Qb3+ {[%clk 0:00:59.4]} 33... Qxb3 {[%clk 0:00:02.3]} 34. axb3
{[%clk 0:01:00.3]} 34... Rd2 {[%clk 0:00:02.6]} 35. h5 {[%clk 0:01:00.8]} 35...
Rxb2 {[%clk 0:00:01.1]} 36. h6 {[%clk 0:01:01.2]} 36... Rd2 {[%clk 0:00:01.1]}
37. h7 {[%clk 0:01:01.5]} 37... Rd8 {[%clk 0:00:01.1]} 38. g4 {[%clk 0:01:02.1]}
1-0